Cogmind - Beta 14 @@@ ROGUE MODE // 2025.03.11 @ 00:24:55 Player: Rudrot Result: Destroyed by G-47 Trooper with Particle Gun Performance ------------- Evolutions (0) 0 Regions Visited (2) 400 Robots Destroyed (34) 170 Value Destroyed (925) 925 Prototype IDs (15) 300 Alien Tech Used (0) 0 Bonus (0) 0 TOTAL SCORE: 1795 Bonus ------- None Cogmind --------- Core Integrity 0/250 Matter 300/300 Energy 177/200 System Corruption 1% Temperature Warning (302) Movement Rolling (115) Ox1 Location -10/Subcaves Parts ------- > --- POWER (1) -------- Subdweller Power Source > --- PROPULSION (2) --- Compact Wheel > --- UTILITY (2) ------ Medium Storage Unit Makeshift Light Armor Plating > --- WEAPON (2) ------- Subdweller Laser Subdweller Beam Cannon > --- INVENTORY (10) --- Medium Storage Unit Small Battery (100) Small Battery (100) Sensor Array Transport Network Coupler Targeting Computer Light Armor Plating Makeshift Laser Grenade Launcher Subdweller Shrapnel Launcher Peak State ------------ > --- POWER ------------ Light Ion Engine > --- PROPULSION ------- Compact Wheel Compact Wheel > --- UTILITY ---------- Medium Storage Unit Makeshift Light Armor Plating > --- WEAPON ----------- Makeshift Laser Subdweller Beam Cannon > --- INVENTORY -------- Medium Storage Unit Small Battery Small Battery Sensor Array Transport Network Coupler Targeting Computer Light Armor Plating Particle Gun Grenade Launcher [Rating: 15] Favorites ----------- Power Light Ion Engine Engine Light Ion Engine Power Core Light Nuclear Core Propulsion Compact Wheel Wheel Compact Wheel Utility Medium Storage Unit Device Improved Heat Sink Storage Medium Storage Unit Protection Makeshift Light Armor Plating Weapon Subdweller Beam Cannon Energy Gun Particle Gun Energy Cannon Subdweller Beam Cannon Ballistic Gun Light Assault Rifle Launcher Grenade Launcher Special Weapon Welding Torch Build | -11 -10 -10 ------- Run | Yrd Mat Sub Slots Evolved . | . . . Power . | . . . Propulsion . | . . . Utility . | . . . Weapon . | . . . Parts Attached 37 | 6 16 15 Power 5 | 1 3 1 Engine 4 | 1 2 1 Core 1 | . 1 . Reactor . | . . . Propulsion 10 | 2 4 4 Treads . | . . . Leg . | . . . Wheel 10 | 2 4 4 Hover . | . . . Flight . | . . . Utility 7 | 1 4 2 Device 4 | . 3 1 Storage 2 | 1 1 . Processor . | . . . Hackware . | . . . Protection 1 | . . 1 Artifact . | . . . Weapon 15 | 2 5 8 Energy Gun 8 | 1 3 4 Energy Cannon 2 | . . 2 Ballistic Gun 2 | 1 1 . Ballistic Cannon . | . . . Launcher 2 | . . 2 Special Weapon 1 | . 1 . Impact Weapon . | . . . Slashing Weapon . | . . . Piercing Weapon . | . . . Special Melee Weapon . | . . . Unidentified Prototypes . | . . . Parts Lost 11 | . 4 7 Power 3 | . 2 1 Propulsion 5 | . 2 3 Utility 1 | . . 1 Weapon 2 | . . 2 Highest Loss Streak 2 | . 2 2 To Critical Strikes . | . . . Average Slot Usage (%) 97 | . 97 97 Engine 12 | . 10 13 Wheel 27 | . 27 27 Device 8 | . 12 6 Storage 14 | . 14 14 Protection 4 | . . 7 Energy Gun 19 | . 26 15 Energy Cannon 7 | . . 11 Peak Build Rating 15 | 6 12 15 Average Rating 11 | 4 9 12 On Entrance 5 | . 6 11 Naked Turns . | . . . Heaviest Build 31 | 13 19 31 Greatest Support 32 | 26 32 32 Greatest Overweight (x) 1 | . . 1 Average Overweight (x) . | . . . Largest Inventory Capacity 10 | 8 10 10 Average Capacity 9 | 6 8 10 Most Carried 10 | . 10 10 Average Carried 8 | . 5 9 Final Capacity 10 | 8 10 10 Final Carried 10 | . 10 10 Class Distribution -------------------- 78% | Mutant 21% | Scavenger-Mutant Dominant Class ---------------- Mutant | -10/Materials Mutant | -10/Subcaves Resources | -11 -10 -10 ----------- Run | Yrd Mat Sub Matter Collected 653 | 235 180 238 Remotely . | . . . Salvage Created 1139 | . 652 487 Parts 57 | . 30 27 Haulers Intercepted 2 | . 2 . Recyclers Shooed . | . . . Parts Field Recycled . | . . . Retrieved Matter . | . . . Parts Self-Destructed 17 | . . 17 Prevented . | . . . Kills | -11 -10 -10 ------- Run | Yrd Mat Sub Combat Hostiles Destroyed 28 | . 14 14 Guns 18 | . 13 5 Cannons 6 | . . 6 AOE 2 | . . 2 Classes Destroyed 9 | . 5 4 Hauler 2 | . 2 . Recycler 1 | . 1 . Turret 1 | . . 1 Watcher 2 | . 2 . Swarmer 10 | . 6 4 Grunt 8 | . 8 . Hunter 1 | . . 1 Programmer 1 | . . 1 Subdweller 8 | . . 8 Best Kill Streak 3 | . 3 3 Combat Bots Only 3 | . 3 2 Max Kills in Single Turn 2 | . 2 2 Gunslinging 1 | . 1 1 Exploded 1 | . . 1 Melee . | . . . Uniques/NPCs Destroyed . | . . . Combat | -11 -10 -10 -------- Run | Yrd Mat Sub Hostile Shots Fired 140 | . 71 69 Missed 52 | . 25 27 Damage Taken 1307 | . 519 788 Core 259 | . 77 182 Absorbed by Shields . | . . . Regen/Repaired (Parts) 28 | . 28 . Core Remaining (%) 100 | 100 . . Volleys Fired 163 | . 74 89 Largest 2 | . 2 2 Hottest 230 | . 115 230 Shots Fired 317 | . 147 170 Gun 232 | . 139 93 Cannon 72 | . . 72 Launcher 5 | . . 5 Special 8 | . 8 . Kinetic 5 | . 5 . Thermal 307 | . 142 165 Explosive 5 | . . 5 Electromagnetic . | . . . Robot Hit Streak 17 | . 17 9 Robot Miss Streak 4 | . 2 4 Penetration Max . | . . . Secondary Targets 5 | . 4 1 Max Gunslinging Chain 1 | . 1 1 Shots Hit Robots 159 | . 98 61 Core Hits 53 | . 30 23 Critical Kills 1 | . . 1 Critical Parts Destroyed . | . . . Critical Strikes 9 | . 5 4 Burn 8 | . 5 3 Meltdown 1 | . . 1 Melee Attacks . | . . . Impact . | . . . Slashing . | . . . Piercing . | . . . Sneak Attacks . | . . . Combat Hostiles . | . . . Follow-up Attacks . | . . . Damage Inflicted 2686 | . 1411 1275 Guns 1584 | . 1133 451 Cannons 555 | . . 555 Explosions 538 | . 269 269 Melee . | . . . Ramming . | . . . Kinetic 18 | . 18 . Thermal 2399 | . 1393 1006 Explosive 269 | . . 269 Electromagnetic . | . . . Impact . | . . . Slashing . | . . . Piercing . | . . . Highest Corruption 1 | . . 1 Average Corruption 1 | . . 1 Corruption Purged . | . . . Corruption Blocked . | . . . Effects 13 | . . 13 Message Errors 6 | . . 6 Matter Fused 4 | . . 4 Heat Flow Errors 1 | . . 1 Energy Discharges 2 | . . 2 Overload Shots 1 | . . 1 Overflow Damage 18 | . 18 . Projectiles . | . . . Explosions 18 | . 18 . Melee . | . . . Knockbacks . | . . . Impact . | . . . Kinetic . | . . . Secondary . | . . . Self-Inflicted Damage 2 | . . 2 Shots 1 | . . 1 Rammed . | . . . Targets Rammed . | . . . Kicked . | . . . Crushed . | . . . Highest Temperature 269 | . 87 269 Average Temperature 40 | . 27 48 Received Heat Transfer 453 | . 273 180 Siege Activations . | . . . Robots Corrupted . | . . . Combat Hostiles . | . . . Parts Fried . | . . . Impact Corruptions . | . . . Robots Melted 3 | . 2 1 Combat Hostiles 2 | . 1 1 Parts Melted 13 | . 9 4 Heat Transferred 5616 | . 3653 1963 Parts Sabotaged . | . . . Parts Stolen . | . . . Parts Stripped . | . . . Power Chain Reactions . | . . . Alert | -11 -10 -10 ------- Run | Yrd Mat Sub Peak Influence 229 | . 229 . Initial . | . . . Average 89 | . 94 . Maximum Alert Level 1 | . 1 . Low Security (%) 87 | 100 87 . Level 1 12 | . 12 . Level 2 . | . . . Level 3 . | . . . Level 4 . | . . . Level 5 . | . . . High Security . | . . . Max Security . | . . . Squads Dispatched 2 | . 2 . Investigation . | . . . Extermination . | . . . Reinforcement 2 | . 2 . Assault . | . . . Garrison . | . . . Intercept . | . . . Searches Triggered . | . . . Construction Impeded . | . . . Haulers Reinforced . | . . . Active Scanning Responses . | . . . Cargo Convoy Interrupts . | . . . Stealth | -11 -10 -10 --------- Run | Yrd Mat Sub Distress Signals . | . . . Communications Jammed . | . . . Distress Signals . | . . . Times Spotted 49 | . 19 30 Peak Tracking Total 6 | . 3 6 Tactical Retreats 2 | . . 2 Traps | -11 -10 -10 ------- Run | Yrd Mat Sub Traps Triggered . | . . . Indirectly . | . . . Trap Hack Attempts . | . . . Triggered . | . . . Disarmed . | . . . Reprogrammed . | . . . Reused . | . . . Traps Extracted . | . . . Installed . | . . . Triggered . | . . . Machines | -11 -10 -10 ---------- Run | Yrd Mat Sub Machines Disabled 3 | . 2 1 Max in Single Turn 2 | . 2 1 Machines Repaired . | . . . Machines Dismantled . | . . . Machines Sabotaged . | . . . Overloaded Fab Kills . | . . . Hacking | -11 -10 -10 --------- Run | Yrd Mat Sub Machines Accessed 6 | . 4 2 Terminals 3 | . 3 . Fabricators . | . . . Repair Stations 1 | . 1 . Recycling Units . | . . . Scanalyzers . | . . . Garrison Access . | . . . Total Hacks 21 | . 8 13 Successful 20 | . 7 13 Failed 1 | . 1 . Catastrophic . | . . . Database Lockouts . | . . . Manual . | . . . Terminals 6 | . 6 . Fabricators . | . . . Repair Stations 2 | . 2 . Recycling Units . | . . . Scanalyzers . | . . . Garrison Access . | . . . Terminal Hacks 18 | . 5 13 Record 12 | . . 12 Prototype ID Bank 2 | . 2 . Locate Traps 3 | . 3 . Derelict Proto ID Bank 1 | . . 1 Fabricator Hacks . | . . . Repair Station Hacks 2 | . 2 . Scan Component 1 | . 1 . Repair 1 | . 1 . Recycling Unit Hacks . | . . . Scanalyzer . | . . . Garrison Access Hacks . | . . . Unauthorized Hacks . | . . . Terminals . | . . . Fabricators . | . . . Repair Stations . | . . . Recycling Units . | . . . Scanalyzers . | . . . Garrison Access . | . . . Data Cores Recovered . | . . . Used . | . . . Hacking Detections 2 | . 2 . Full Trace Events . | . . . Feedback Events . | . . . Feedback Blocked . | . . . Robot Schematics Acquired . | . . . Robots Built . | . . . Authchips . | . . . Time . | . . . Total Robot Build Rating . | . . . Part Schematics Acquired . | . . . Parts Built . | . . . Authchips . | . . . Time . | . . . Total Part Build Rating . | . . . Parts Repaired 1 | . 1 . Time 38 | . 38 . Parts Recycled . | . . . Recycled Matter . | . . . Retrieved Matter . | . . . Retrieved Components . | . . . Parts Scanalyzed . | . . . Part Schematics Acquired . | . . . Parts Damaged . | . . . Bothacking | -11 -10 -10 ------------ Run | Yrd Mat Sub Used RIF Installer . | . . . Robots Hacked . | . . . Non-combat . | . . . Combat . | . . . Robot Hacks Applied . | . . . Relay Couplers Released . | . . . Fabnet Peak Effective % . | . . . Robots Rewired . | . . . Allies Hacked . | . . . Hacks Repelled . | . . . Allies | -11 -10 -10 -------- Run | Yrd Mat Sub Total Allies . | . . . Largest Group . | . . . Highest-Rated Group . | . . . Highest-Rated Ally . | . . . Total Orders . | . . . Ally Attacks . | . . . Total Damage . | . . . Kills . | . . . Allies Corrupted . | . . . Allies Melted . | . . . Intel | -11 -10 -10 ------- Run | Yrd Mat Sub Robot Analysis Total . | . . . Derelict Logs Recovered 1 | . . 1 Drone Launches . | . . . Drone Recoveries . | . . . Exploration | -11 -10 -10 ------------- Run | Yrd Mat Sub Turns Passed 3389 | 57 1060 2272 Spaces Moved 2800 | 55 812 1933 Core 3 | 3 . . Treads . | . . . Legs . | . . . Wheels 2797 | 52 812 1933 Hover . | . . . Flight . | . . . Fastest Speed 50 | 50 80 90 Average Speed 96 | 88 94 97 Slowest Speed 115 | 100 100 115 Overloaded Moves . | . . . Propulsion Burnouts . | . . . Robots Hopped . | . . . Cave-ins Triggered . | . . . Exploration Rate (%) 63 | 3 99 87 Regions Visited 2 Branch Regions 1 Pre-discovered Areas 1 | . . 1 Known Exits Taken . | . . . Unknown Exits Taken 2 | 1 1 . Scrap Searched 16 | . . 16 Spaces Dug 2 | . . 2 Terrain Destroyed 41 | . 20 21 Melee . | . . . Projectile 4 | . . 4 AOE 37 | . 20 17 Terrain Rammed . | . . . Walls Destroyed . | . . . Machines Disabled . | . . . Actions | -11 -10 -10 --------- Run | Yrd Mat Sub Total 3161 | 60 959 2142 Wait 135 | . 37 98 Move 2798 | 54 811 1933 Hop . | . . . Pick Up 16 | . 13 3 Fast Attach 13 | 6 3 4 Attach 8 | . 4 4 Detach 1 | . 1 . Swap 16 | . 9 7 Drop 11 | . 7 4 Fire 163 | . 74 89 Melee . | . . . Ram . | . . . Kick . | . . . Crush . | . . . Escape Stasis . | . . . Rewire . | . . . Trap . | . . . Miscellaneous . | . . . Route ------- -11/Scrapyard -10/Materials (discovered 6 exits: [*Mat x3] / [*Min x2] / *Sub) -10/Subcaves (discovered 2 exits: [*Mat] / [*Rec]) History --------- Turn | Location | Event 13 | -11/Scrapyard | Discovered new exit (range 15) 58 | -11/Scrapyard | Entered Materials 230 | -10/Materials | Discovered new exit (range 16) 312 | -10/Materials | Build established: Mutant 486 | -10/Materials | Discovered new exit (range 14) 713 | -10/Materials | Repaired Imp. Heat Sink 792 | -10/Materials | Discovered new exit (range 16) 913 | -10/Materials | Discovered new exit (range 15) 1001 | -10/Materials | Discovered new exit (range 16) 1106 | -10/Materials | Discovered new exit (range 12) 1118 | -10/Materials | Entered Subcaves 1650 | -10/Subcaves | Build established: Scavenger-Mutant 1733 | -10/Subcaves | Learned location of Zion (-7) 1733 | -10/Subcaves | Met a Zionite searching for "candidates" 1782 | -10/Subcaves | Ambushed by research squad 1783 | -10/Subcaves | Core integrity fell below 50% 1868 | -10/Subcaves | Discovered new exit (range 13) 1897 | -10/Subcaves | Learned Materials stockpile data 2138 | -10/Subcaves | Discovered new exit (range 7) 2207 | -10/Subcaves | Disturbed a concealed Subdweller 2218 | -10/Subcaves | Disturbed a concealed Subdweller 2462 | -10/Subcaves | Visited 4L-MR0's lab 2504 | -10/Subcaves | Build established: Mutant 2642 | -10/Subcaves | Visited Clippyterm 2645 | -10/Subcaves | Learned Research machine intel 2674 | -10/Subcaves | Shifting Twisted Machinery released Shrapnel Trap 2768 | -10/Subcaves | Shifting Twisted Machinery released Mak. System Restoration Module 2921 | -10/Subcaves | Shifting Twisted Machinery released Sub. Shrapnel Launcher 2924 | -10/Subcaves | A swath of the cavern ceiling suddenly collapsed 2945 | -10/Subcaves | Shifting Twisted Machinery released Battle Rifle 3378 | -10/Subcaves | Core integrity fell below 20% 3390 | -10/Subcaves | Destroyed by G-47 Trooper with Particle Gun Last Messages --------------- 02956_ System corrupted: Energy discharge (-46). 03031_ System corrupted: Energy discharge (-72). 03155_ Searching scrap... 03155_ Found Riot Gun. 03155_ Found 45 Matter. 03156_ Acquired 10 matter. 03159_ Searching scrap... 03159_ Found Sub. Machine Gun. 03159_ Found Mak. Leg. 03159_ Found 39 Matter. 03161_ Searching scrap... 03161_ Found Sub. Machine Gun. 03161_ Found 62 Matter. 03167_ Searching scrap... 03167_ Found Sub. Power Source. 03167_ Found Sub. Shrapnel Launcher. 03167_ Found 43 Matter. 03379_ Critical hit (Burn: +37). 03381_ Com. Wheel destroyed. 03390_ Critical hit (Burn: +37). Map ----- +----------------------------------------------------+ | ???????????????# ### | | ???????????????## #### | | ????????????????## ### | | ?????????????????## ##### | | ??????????????????## ##???# | | ?????????????????### ##????# ## | | ????????????????## ##?????#####? | | ???????????????## ####???????????? | | ??????????????## ###??????????????? | | ??????????????# ##????????????????? | | ??????????????#### # ####?????????????????? | | ?????????????????# ## ##????????????????????? | | ????????????????## # #????????????????????? | | ????????????????# ### ##????????????????????? | | ????????????????# ## #?????????????????????? | | ????????????????# #?????????????????????? | | ????????????????##%* ###?????????????????????? | | ?????????????????# %###???????????????????????? | | ????????????????##&&##????????????????????????? | | ????????????????# ##???????????????????????? | | ????????????????# # ##??????????????????????? | | ??????############## #??????????????????????? | | ??????#" #?#& #??????????????????????? | | ??????# &* ###&& ##?????????????????????? | | ??????# % ##!%# #?????????????????????? | | ?????## "##&&# @ #?????????????????????? | | ?????# ! " # < * < #?????????????????????? | | ?????# |%% [; g #?????????????????????? | | ?????#" [%!%=; #?????????????????????? | | ?????# ]%%% ;g # #####??############???? | | ?????#" !* ;# ## ## #### #???? | | ?????# "# ## * # #????# | | ?????##" " % "## # #&%= ! ##????# | | ??????# ""!%""## # ####% ####### | | ??????## " & ### # ##??## ## # # # | | ???????### &"##? #??# # ## | | ?????????######???# ##??# ## | | ??????????????????## ???# #### # ### | | ???????????????????# ???? ???# | | ???????????????????# ???# #???## # ! | | ???????????????????## ???##"?????### [ # | | ????????????????????##????""???????# ### | | ??????????????????????????"???????# ### #?# | | ??????????????????????????????????## ""?## #?# | | ???????????????????????????????????#""#??# ##?? | | ???????????????????????????????????#""#?? #??? | | ???????????????????????????????????#"???? #??? | | ???????????????????????????????????????? ??? | | ???????????????????????????????????????? ??? | | ??????????????????????????????????????? ??? | +----------------------------------------------------+ Best States ------------- Heat Dissipation 39 Energy Generation 15 Energy Capacity 250 Matter Stores 300 Matter Capacity 300 Sight Range 16 Terrain Scan Density 10 Armor Coverage 100 Evasion (%) 44 Item Schematics ----------------- None Robot Schematics ------------------ None Fabricated ------------ Nothing Alien Tech Used ----------------- None Achievements -------------- None Challenges ------------ None Game ------ Seed NovaAccelerationArticulator Manual? 0 Play Time 00:46:53 Cumulative 21.8 hours Start 2025.03.10 @ 23:07:50 End 2025.03.11 @ 00:24:55 Sessions 1 Manual Loads 0 Difficulty Rogue Special Mode None Game No. 13 Rogue 13 Adventurer 0 Explorer 0 Win Type - Total 0 Types 0/0/0/0/0/0/0/0/0 Lore% 7 Gallery% 13 Achievement% 15 Wizard Run 0 Options --------- Layout 1 ASCII 0 Keyboard 1 Movement Numpad Keybinds 0 Fullscreen 2 Font 24/Cog Map View 50x35 Zoom Use 0% Tactical HUD 1 Map Filters NONE Filters NONE Steam 1 RUN: fc5b3a6d-5125-4198-bacf-c815a0fab880